bitfinex/quotes_ETHUSD_20251023
["timestamp","ask_amount","ask_price","bid_price","bid_amount"]
[1761219563753,0.50688,3869.4,3869.3,3.24144679]
[1761219567754,0.50688,3869.4,3869.3,3.89025844]
[1761219567957,0.50688,3869.4,3869.3,4.32185844]
[1761219568255,0.50688,3869.4,3869.3,3.89025844]
[1761219578669,0.001,3869.8,3869.7,2.58417965]
[1761219578962,0.001,3869.8,3869.7,5.88917965]
[1761219580342,0.001,3869.8,3869.7,6.79595226]
[1761219582064,0.0002,3869.8,3869.7,3.305]
[1761219582280,0.73488,3869.8,3869.7,3.305]
[1761219586945,3.31899287,3869.8,3869.7,3.305]
[1761219589804,0.50688,3869.6,3869.4,3.305]
[1761219590207,0.73548,3869.5,3869.4,3.305]
[1761219590407,0.63648,3869.5,3869.4,5.88938]
[1761219590596,0.63648,3869.5,3869.4,6.76267851]
[1761219590777,0.63648,3869.5,3869.4,5.88938]
[1761219591178,0.50688,3869.5,3869.4,5.88938]
[1761219591507,0.50688,3869.5,3869.4,6.35408]
[1761219591820,0.50688,3869.5,3869.4,5.88938]
[1761219592182,0.50688,3869.5,3869.4,6.35408]
[1761219593710,0.50688,3869.5,3869.4,7.27126406]
[1761219594778,0.50688,3869.5,3869.4,6.80656406]
[1761219594980,0.50688,3869.5,3869.4,5.88938]
[1761219595384,0.50688,3869.5,3869.4,3.305]
[1761219595613,0.50688,3869.5,3869.4,5.88938]
[1761219599390,0.60588,3869.5,3869.4,5.88938]
[1761219599591,0.60588,3869.5,3869.4,3.305]
[1761219599792,0.60588,3869.5,3869.4,5.88938]
[1761219600325,0.60588,3869.5,3869.3,0.002]
[1761219600326,0.50688,3869.4,3869.3,0.002]
[1761219600488,0.60588,3869.4,3869.3,3.306]
[1761219600827,0.50688,3869.4,3869.3,3.306]
[1761219602906,0.50688,3869.4,3869.3,0.002]
[1761219603107,4.74546,3869.4,3869.3,0.002]
[1761219605224,8.18007798,3869.4,3869.3,0.002]
[1761219606501,8.17927798,3869.4,3869.3,0.002]
[1761219608803,3.09152719,3869.0,3868.9,0.002]
[1761219609124,4.64672719,3869.0,3868.9,0.002]
[1761219609434,4.74572719,3869.0,3868.9,0.002]
[1761219609609,8.15318246,3869.0,3868.9,0.002]
[1761219611095,8.28807939,3869.0,3868.9,0.002]
[1761219615307,8.41767939,3869.0,3868.9,0.002]
[1761219617039,5.11367939,3869.0,3868.9,0.002]
[1761219617209,8.41767939,3869.0,3868.9,0.002]
[1761219618552,14.75767939,3869.0,3868.9,0.002]
[1761219620985,19.0882602,3869.0,3868.9,0.002]
[1761219623364,3.09179443,3868.6,3868.5,0.002]
[1761219623542,12.28157524,3868.6,3868.5,0.002]
[1761219623748,12.64387524,3868.6,3868.5,0.002]
[1761219624168,12.74734255,3868.6,3868.5,0.002]
[1761219626874,12.51464255,3868.6,3868.5,0.002]
[1761219629761,8.18406174,3868.6,3868.5,0.002]
[1761219630962,8.18326174,3868.6,3868.5,0.002]
[1761219637755,4.87926174,3868.6,3868.5,0.002]
[1761219637952,4.24278174,3868.6,3868.5,0.4496]
[1761219638151,4.26891443,3868.6,3868.5,0.4496]
[1761219638865,4.77579443,3868.6,3868.5,0.4496]
[1761219641095,4.64619443,3868.6,3868.5,0.4496]
[1761219641587,4.7810897,3868.6,3868.5,0.4496]
[1761219645070,4.7820897,3868.6,3868.5,0.4496]
[1761219648190,4.7820897,3868.6,3868.5,0.002]
[1761219648387,8.1820897,3868.6,3868.5,0.002]
[1761219648600,8.3996897,3868.6,3868.5,0.002]
[1761219650882,8.3006897,3868.6,3868.5,0.002]
[1761219651082,8.4302897,3868.6,3868.5,0.002]
[1761219655320,8.4302897,3868.6,3868.5,0.4496]
[1761219655518,8.4294897,3868.6,3868.5,0.4496]
[1761219655688,8.4294897,3868.6,3868.5,0.002]
[1761219657020,12.85947051,3868.6,3868.5,0.002]
[1761219657605,12.76007051,3868.6,3868.5,0.002]
[1761219661390,5.1284897,3868.6,3868.5,0.002]
[1761219661593,4.6216097,3868.6,3868.5,0.4487]
[1761219661838,4.4040097,3868.6,3868.5,0.4487]
[1761219661993,4.9108897,3868.6,3868.5,0.4487]
[1761219665425,4.9108897,3868.6,3868.5,0.002]
[1761219666644,8.3098897,3868.6,3868.5,0.002]
[1761219667445,4.9108897,3868.6,3868.5,0.4487]
[1761219668154,4.9108897,3868.6,3868.5,0.002]
[1761219668669,5.0098897,3868.6,3868.5,0.002]
[1761219668942,4.9108897,3868.6,3868.5,0.002]
[1761219669546,5.0098897,3868.6,3868.5,0.002]
[1761219670114,3.09232909,3867.8,3867.7,0.53496992]
[1761219670462,12.4067099,3867.8,3867.7,0.53496992]
[1761219670656,12.5062099,3867.8,3867.7,0.53496992]
[1761219671743,12.64115463,3867.8,3867.7,0.53496992]
[1761219672044,12.54165463,3867.8,3867.7,0.53496992]
[1761219672458,8.21107382,3867.8,3867.7,0.53496992]
[1761219677465,4.91207382,3867.8,3867.7,0.98166992]
[1761219679661,4.91207382,3867.8,3867.7,0.53496992]
[1761219679865,4.91127382,3867.8,3867.7,0.53496992]
[1761219681967,4.91127382,3867.8,3867.7,0.98166992]
[1761219682269,4.91207382,3867.8,3867.7,0.98166992]
[1761219684269,4.91207382,3867.8,3867.7,0.53496992]
[1761219684666,4.91207382,3867.8,3867.7,0.98166992]
[1761219685975,4.91207382,3867.8,3867.7,0.53496992]
[1761219686273,4.91207382,3867.8,3867.7,0.98376992]
[1761219686472,8.21007382,3867.8,3867.7,0.98376992]
[1761219687635,4.91207382,3867.8,3867.7,0.98376992]
[1761219688737,2.32662473,3867.8,3867.7,0.98376992]
[1761219689242,4.91207382,3867.8,3867.7,0.4508]
[1761219691838,2.32662473,3867.8,3867.7,0.4508]
[1761219694057,2.32662473,3867.8,3867.7,0.7546426]
[1761219694577,2.32662473,3867.8,3867.7,0.4508]
[1761219697877,2.32762473,3867.8,3867.7,0.4508]
[1761219699879,0.77242473,3867.8,3867.7,0.4508]
[1761219704482,0.77162473,3867.8,3867.7,0.4508]
[1761219706363,4.91227382,3867.8,3867.7,0.002]
[1761219707274,2.32682473,3867.8,3867.7,0.002]
[1761219707491,2.32682473,3867.8,3867.7,0.4744]
[1761219709777,4.91227382,3867.8,3867.7,0.002]
[1761219710164,9.88455321,3867.8,3867.7,0.002]
[1761219712488,4.74659593,3867.7,3867.6,1e-08]
[1761219712800,8.04259593,3867.7,3867.6,1e-08]
[1761219715385,4.6477965,3867.4,3867.3,0.002]
[1761219715590,12.94667589,3867.4,3867.3,0.002]
[1761219715806,13.04567589,3867.4,3867.3,0.002]
[1761219716179,13.18064253,3867.4,3867.3,0.002]
[1761219716405,4.88176314,3867.4,3867.3,0.002]
[1761219716609,5.01136314,3867.4,3867.3,0.002]
[1761219716798,4.91236314,3867.4,3867.3,0.002]
[1761219716999,8.20836314,3867.4,3867.3,0.002]
[1761219717313,8.30736314,3867.4,3867.3,0.002]
[1761219718008,8.20836314,3867.4,3867.3,0.002]
[1761219718813,8.30736314,3867.4,3867.3,0.002]
[1761219720913,4.91236314,3867.4,3867.3,0.002]
[1761219721104,8.20836314,3867.4,3867.3,0.002]
[1761219721721,8.30736314,3867.4,3867.3,0.002]
[1761219722441,4.74686336,3867.3,3867.2,1e-08]
[1761219722628,9.62014275,3867.3,3867.2,1e-08]
[1761219723143,10.15292134,3867.3,3867.2,1e-08]
[1761219725613,4.64813084,3866.9,3866.8,0.002]
[1761219725814,8.07373084,3866.9,3866.8,0.002]
[1761219726013,13.06141023,3866.9,3866.8,0.002]
[1761219726444,5.33276377,3866.9,3866.8,0.002]
[1761219726623,4.14125084,3866.9,3866.8,0.002]
[1761219726838,7.43625084,3866.9,3866.8,0.002]
[1761219727018,7.94313084,3866.9,3866.8,0.002]
[1761219728869,7.94233084,3866.9,3866.8,0.002]
[1761219729570,7.43545084,3866.9,3866.8,0.002]
[1761219729776,7.94233084,3866.9,3866.8,0.002]
[1761219734575,4.64733084,3866.9,3866.8,0.002]
[1761219734756,7.94233084,3866.9,3866.8,0.4621]
[1761219735956,8.07193084,3866.9,3866.8,0.4621]
[1761219736484,4.27005084,3866.9,3866.8,0.4621]
[1761219736686,0.1296,3866.9,3866.8,0.4621]
[1761219736983,0.1296,3866.9,3866.8,0.76693959]
[1761219737751,0.1296,3866.9,3866.8,3.35305731]
[1761219737984,2.58512105,3868.3,3866.8,3.35305731]
[1761219737985,2.58562564,3867.6,3866.8,3.35305731]
[1761219738185,2.58562564,3867.6,3866.9,3.04615084]
[1761219738186,0.1296,3867.0,3866.9,3.04615084]
[1761219738387,0.63648,3867.0,3866.9,2.58605084]
[1761219738587,0.1296,3867.0,3866.9,3.13396309]
[1761219738982,0.1296,3867.0,3866.9,1.00801225]
[1761219739155,0.63648,3867.0,3866.9,1.00801225]
[1761219739355,0.63648,3867.0,3866.9,0.4601]
[1761219740890,4.64813084,3866.9,3866.8,0.002]
[1761219741490,4.64813084,3866.9,3866.8,0.4621]
[1761219743154,2.06208,3866.9,3866.8,0.4621]
[1761219743357,4.64813084,3866.9,3866.8,0.4621]
[1761219744560,2.06208,3866.9,3866.8,0.4621]
[1761219744775,4.64813084,3866.9,3866.8,0.4621]
[1761219745673,4.64813084,3866.9,3866.8,0.002]
[1761219746163,4.78308037,3866.9,3866.8,0.002]
[1761219746867,4.78308037,3866.9,3866.8,0.4547]
[1761219748292,4.78308037,3866.9,3866.8,0.002]
[1761219749562,4.78308037,3866.9,3866.8,0.4614]
[1761219753360,4.78228037,3866.9,3866.8,0.4614]
[1761219754514,2.19622953,3866.9,3866.8,0.4614]
[1761219754797,2.32582953,3866.9,3866.8,0.4614]
[1761219756271,2.32582953,3866.9,3866.8,0.7880647]
[1761219757505,2.32582953,3866.9,3866.8,0.4614]
[1761219762105,2.32582953,3866.9,3866.8,0.002]
[1761219762290,2.32582953,3866.9,3866.8,0.4614]
[1761219767048,2.19622953,3866.9,3866.8,3.04751772]
[1761219767329,0.64102953,3866.9,3866.8,3.04751772]
[1761219767534,0.50608,3866.9,3866.8,3.04751772]
[1761219767695,0.001,3867.0,3866.8,0.57833149]
[1761219767898,0.001,3867.0,3866.9,0.4594]
[1761219768129,3.09386396,3867.0,3866.9,0.4594]
[1761219768317,3.09293084,3866.9,3866.8,0.002]
[1761219769208,3.09388786,3867.0,3866.8,0.002]
[1761219769517,0.001,3866.9,3866.8,0.002]
[1761219770411,0.001,3866.9,3866.8,0.4614]
[1761219771830,0.001,3866.9,3866.8,3.55936573]
[1761219773022,0.001,3866.9,3866.8,4.26524801]
[1761219773194,0.001,3866.9,3866.8,6.85136573]
[1761219777742,0.001,3866.9,3866.8,6.98096573]
[1761219777904,0.0002,3866.9,3866.8,6.98096573]
[1761219779250,0.0002,3866.9,3866.8,6.99426573]
[1761219781124,0.0002,3866.9,3866.8,0.64344801]
[1761219781331,0.0002,3866.9,3866.8,3.293]
[1761219781532,0.63668,3866.9,3866.8,3.293]
[1761219783829,0.63668,3866.9,3866.8,3.7657]
[1761219784422,0.63668,3866.9,3866.8,3.293]
[1761219784623,0.63668,3866.9,3866.8,6.35181772]
[1761219784848,0.63668,3866.9,3866.8,5.87911772]
[1761219785029,0.63668,3866.9,3866.8,7.24562225]
[1761219785235,0.0002,3866.9,3866.8,7.24562225]
[1761219786354,0.0002,3866.9,3866.8,4.65950453]
[1761219786555,0.0002,3866.9,3866.8,4.18680453]
[1761219786852,0.0002,3866.9,3866.8,3.293]
[1761219788654,0.0002,3866.9,3866.8,6.35181772]
[1761219788823,0.0002,3866.9,3866.8,5.87911772]
[1761219789225,0.0002,3866.9,3866.8,3.293]
[1761219790224,0.73568,3866.9,3866.8,3.293]
[1761219790423,0.63668,3866.9,3866.8,3.293]
[1761219790658,0.73568,3866.9,3866.8,3.293]
[1761219791049,0.63668,3866.9,3866.8,3.293]
[1761219793059,0.73568,3866.9,3866.8,3.293]
[1761219793357,3.32173084,3866.9,3866.8,3.293]
[1761219793562,3.22273084,3866.9,3866.8,3.293]
[1761219793755,3.32173084,3866.9,3866.8,3.293]
[1761219794061,0.73568,3866.9,3866.8,3.293]
[1761219794662,3.32173084,3866.9,3866.8,0.002]
[1761219794963,5.46780412,3866.9,3866.8,0.002]
[1761219796875,9.80044907,3866.9,3866.8,0.002]
[1761219797074,12.96184907,3866.9,3866.8,0.002]
[1761219797281,13.73826366,3866.9,3866.8,0.002]
[1761219802297,13.73746366,3866.9,3866.8,0.002]
[1761219802710,9.40481871,3866.9,3866.8,0.002]
[1761219802899,14.28227702,3866.9,3866.8,0.002]
[1761219805845,14.28227702,3866.9,3866.4,0.002]
[1761219805846,4.64839837,3866.5,3866.4,0.002]
[1761219805994,12.81685668,3866.5,3866.4,0.002]
[1761219806194,12.91585668,3866.5,3866.4,0.002]
[1761219806616,13.61965668,3866.5,3866.4,0.002]
[1761219806799,13.61965668,3866.5,3864.3,0.53695431]
[1761219806800,3.09460383,3864.4,3864.3,0.53695431]
[1761219807027,3.09487171,3864.0,3863.5,0.4708]
[1761219807232,4.77967171,3864.0,3863.5,0.4708]
[1761219807440,0.50688,3864.0,3863.9,3.06185869]
[1761219807770,2.58699498,3865.5,3863.9,3.06185869]
[1761219807771,2.58711107,3865.4,3864.4,2.58766455]
[1761219807898,0.3,3864.6,3864.5,3.27755687]
[1761219808103,1.5552,3865.4,3864.5,1.32976897]
[1761219808302,0.13500982,3865.3,3864.6,0.4708]
[1761219808548,1.5552,3865.2,3864.6,0.4708]
[1761219808898,2.72216152,3865.3,3864.5,0.2191]
[1761219808899,2.58751793,3864.8,3864.5,0.2191]
[1761219809403,2.58740317,3864.9,3864.6,0.4362]
[1761219809627,2.06208,3864.8,3864.2,0.53334204]
[1761219809958,2.06208,3864.6,3864.3,0.4362]
[1761219810304,0.50688,3864.6,3864.4,0.4362]
[1761219810548,0.50688,3864.6,3864.2,0.53334204]
[1761219810857,0.50688,3864.8,3864.3,0.4362]
[1761219811238,1.5552,3864.7,3864.3,0.4362]
[1761219812316,0.50688,3864.6,3864.3,0.4362]
[1761219812532,0.50688,3864.6,3864.2,0.86808405]
[1761219812533,0.50688,3864.6,3864.2,0.53334204]
[1761219813007,0.50688,3864.4,3864.2,0.53334204]
[1761219813208,4.64982151,3864.4,3864.2,0.53334204]
[1761219814206,2.06208,3864.6,3864.3,0.4362]
[1761219814406,3.09454801,3864.5,3864.3,0.4362]
[1761219814646,0.50688,3864.4,3864.3,0.4362]
[1761219814848,3.294,3865.1,3864.2,0.53334204]
[1761219815051,0.50688,3864.9,3864.3,0.4362]
[1761219815251,0.0997,3865.8,3864.3,0.4362]
[1761219815553,1.5552,3865.1,3864.4,2.58767577]
[1761219815707,2.58735971,3865.0,3864.5,0.61450484]
[1761219816013,0.50688,3864.8,3864.5,0.61450484]
[1761219816213,0.50688,3864.8,3864.6,0.4362]
[1761219816423,3.09414376,3865.1,3864.6,0.4362]
[1761219816625,1.69020982,3865.3,3864.2,0.53334204]
[1761219816626,0.50688,3865.0,3864.2,0.53334204]
[1761219816832,1.69020982,3865.3,3864.2,0.53334204]
[1761219816833,0.50688,3864.8,3864.3,0.4362]
[1761219817032,0.50688,3864.8,3864.4,0.4487642]
[1761219817217,0.50688,3864.9,3864.4,0.4487642]
[1761219817411,2.06208,3864.9,3864.5,0.4362]
[1761219817805,0.63648,3864.6,3864.5,0.4362]
[1761219818414,0.1296,3864.6,3864.5,3.02385687]
[1761219818641,0.1296,3864.8,3864.5,3.42443841]
[1761219818840,0.1296,3864.8,3864.6,0.4362]
[1761219819142,0.13500982,3865.3,3864.7,2.58752296]
[1761219819339,0.1296,3864.9,3864.6,3.0237671]
[1761219819525,0.1296,3864.9,3864.6,0.4362]
[1761219819843,0.1296,3864.9,3864.7,4.11751923]
[1761219820346,2.19168,3864.9,3864.8,0.4362]
[1761219820506,0.63648,3864.9,3864.8,0.4362]
[1761219820910,0.63648,3864.9,3864.7,0.38731923]
[1761219821233,0.63648,3864.9,3864.8,0.4362]
[1761219822114,2.19168,3864.9,3864.8,0.4362]
[1761219822315,0.63648,3864.9,3864.8,0.4362]
[1761219823942,0.50688,3864.8,3864.5,0.83679631]
[1761219824451,0.50688,3864.8,3864.6,0.82353486]
[1761219824617,0.50688,3864.8,3864.7,3.299]
[1761219824813,0.50688,3864.8,3864.7,3.7352]
[1761219825817,0.1296,3864.9,3864.7,3.7352]
[1761219826015,4.64953601,3864.8,3864.7,3.299]
[1761219826327,3.0946708,3864.3,3864.2,0.53334204]
[1761219826522,3.2242708,3864.3,3864.2,0.53334204]
[1761219826737,0.63648,3864.3,3864.2,0.53334204]
[1761219826938,4.7794708,3864.3,3864.2,0.53334204]
[1761219827337,4.8791708,3864.3,3864.2,0.53334204]
[1761219827565,5.32221716,3864.3,3864.2,0.53334204]
[1761219827772,2.19168,3864.3,3864.2,0.53334204]
[1761219828058,2.19168,3864.3,3864.2,0.96954204]
[1761219828263,2.19168,3864.3,3864.2,0.53334204]
[1761219829048,2.19168,3864.3,3864.2,0.96954204]
[1761219830733,0.63648,3864.3,3864.2,3.55739981]
[1761219830987,0.63648,3864.3,3864.2,1.91468745]
[1761219831879,4.14259514,3864.9,3864.2,1.91468745]
[1761219831880,2.06208,3864.9,3864.2,4.50254522]
[1761219832083,0.63648,3864.4,3864.3,0.4362]
[1761219834588,0.63648,3864.4,3864.3,3.0239908]
[1761219834985,0.1296,3864.4,3864.3,3.0239908]
[1761219835195,0.001,3865.1,3864.6,2.58754649]
[1761219835411,0.1296,3864.8,3864.7,5.91139818]
[1761219835598,0.1296,3864.9,3864.8,2.58739406]
[1761219835878,0.1296,3864.9,3864.8,3.02365601]
[1761219838230,0.001,3865.1,3864.8,3.02365601]
[1761219838505,0.63648,3865.0,3864.9,1.32712429]
[1761219839407,0.001,3865.1,3865.0,2.58732212]
[1761219839571,0.001,3865.1,3865.0,3.05442212]
[1761219840438,0.001,3865.1,3865.0,6.35242212]
[1761219842733,0.001,3865.1,3865.0,6.48202212]
[1761219843053,0.001,3865.1,3865.0,7.47805763]
[1761219843598,0.001,3865.1,3864.2,1.00044204]
[1761219843912,0.50688,3864.8,3864.3,3.296]
[1761219844110,0.1296,3864.5,3864.3,3.296]
[1761219844902,0.1296,3864.5,3864.3,6.35088088]
[1761219845101,0.1296,3864.5,3864.3,3.7631]
[1761219845838,0.1296,3864.7,3864.4,3.05482136]
[1761219846006,0.1296,3864.9,3864.6,2.58753286]
[1761219846335,0.1296,3864.9,3864.7,3.297]
[1761219846635,0.50688,3864.8,3864.7,3.297]
[1761219846839,0.63648,3864.8,3864.7,3.297]
[1761219849138,4.14350753,3865.1,3864.7,3.297]
[1761219849139,0.50788,3865.1,3864.7,3.297]
[1761219849341,0.001,3865.1,3864.7,3.297]
[1761219849525,0.13601573,3865.1,3864.8,0.4671]
[1761219849699,0.64289573,3865.1,3864.7,3.297]
[1761219849904,2.06208,3864.9,3864.7,3.297]
[1761219850104,3.09428597,3864.9,3864.7,3.297]
[1761219850335,2.06208,3864.9,3864.7,3.297]
[1761219850703,0.13601573,3865.1,3864.7,3.297]
[1761219851109,0.13601573,3865.1,3864.8,0.4671]
[1761219851309,0.13521573,3865.1,3864.8,0.4671]
[1761219851624,0.13521573,3865.1,3864.7,3.297]
[1761219851625,0.50688,3865.0,3864.7,3.297]
[1761219852231,0.50688,3865.0,3864.7,3.7641]
[1761219852806,0.50688,3865.0,3864.7,5.88446985]
[1761219853011,0.50688,3865.0,3864.8,0.4671]
[1761219853722,0.50688,3865.0,3864.9,3.298]
[1761219857757,0.50688,3865.0,3864.9,3.296]
[1761219857959,2.06208,3865.0,3864.9,3.296]
[1761219858457,2.06208,3865.0,3864.6,3.296]
[1761219858458,2.06208,3864.8,3864.6,3.296]
[1761219858756,2.06208,3864.9,3864.6,3.296]
[1761219859118,0.63648,3864.7,3864.6,3.296]
[1761219859530,0.63648,3864.7,3864.4,3.296]
[1761219860263,0.63648,3864.7,3864.4,3.7631]
[1761219860483,0.63648,3864.7,3864.5,0.4671]
[1761219862952,0.63648,3864.7,3864.5,3.054736]
[1761219863365,0.13521573,3865.1,3865.0,2.58732212]
[1761219863564,0.0002,3865.1,3865.0,5.88232212]
[1761219863868,0.0002,3865.1,3865.0,6.34942212]
[1761219869583,0.0002,3865.1,3865.0,5.88232212]
[1761219870077,0.0002,3865.1,3865.0,6.32762212]
[1761219870449,0.0002,3865.1,3865.0,6.73894888]
[1761219871783,0.0002,3865.1,3865.0,4.14962676]
[1761219871982,0.0002,3865.1,3865.0,6.32562212]
[1761219872328,0.0002,3865.1,3865.0,3.293]
[1761219872686,0.0002,3865.1,3864.5,3.03294909]
[1761219872897,0.0002,3865.1,3864.6,3.293]
[1761219873186,0.0002,3865.1,3864.6,5.88055602]
[1761219873489,0.1296,3864.7,3864.6,3.293]
[1761219873684,0.1296,3864.7,3864.6,5.88058991]
[1761219874107,0.1296,3864.7,3864.6,3.293]
[1761219874612,0.1296,3864.7,3864.4,2.58769654]
[1761219874912,0.1296,3864.7,3864.3,0.002]
[1761219874913,0.1296,3864.7,3864.6,2.58758991]
[1761219875095,0.1296,3864.7,3864.5,5.88063305]
[1761219875296,0.1296,3864.7,3864.6,2.58758991]
[1761219875678,0.0002,3865.1,3864.9,2.58736354]
[1761219875885,0.0002,3865.1,3865.0,3.293]
[1761219876106,0.0002,3865.1,3865.0,3.7383]
[1761219876296,0.63668,3865.1,3865.0,3.7383]
[1761219876817,0.1298,3865.1,3865.0,6.32562212]
[1761219877321,0.1298,3865.1,3865.0,2.98262212]
[1761219877500,0.1298,3865.1,3864.9,2.58738194]
[1761219877898,0.1298,3865.1,3865.0,2.58732212]
[1761219878513,0.1298,3865.1,3865.0,5.88032212]
[1761219880314,0.1298,3865.1,3865.0,3.293]
[1761219880692,0.1298,3865.1,3865.0,5.88032212]
[1761219881810,0.1298,3865.1,3865.0,6.32562212]
[1761219881994,0.1298,3865.1,3865.0,5.88032212]
[1761219882195,0.1298,3865.1,3865.0,3.293]
[1761219883017,0.1298,3865.1,3865.0,5.88032212]
[1761219883591,0.1298,3865.1,3865.0,6.32562212]
[1761219886728,0.0002,3865.1,3865.0,6.32562212]
[1761219887923,0.0002,3865.1,3865.0,7.22988877]
[1761219891286,0.0002,3865.1,3865.0,7.35948877]
[1761219892292,0.0002,3865.1,3865.0,6.91418877]
[1761219892520,0.0002,3865.1,3865.0,7.35948877]
[1761219893315,0.0002,3865.1,3865.0,6.91418877]
[1761219893509,0.0002,3865.1,3865.0,7.35948877]
[1761219894341,0.0002,3865.1,3865.0,6.91418877]
[1761219894547,0.0002,3865.1,3865.0,7.35948877]
[1761219900351,0.0004,3865.5,3865.4,2.80415437]
[1761219900648,0.0004,3865.5,3865.4,7.2072554]
[1761219900851,0.0004,3865.5,3865.4,7.6765554]
[1761219901151,0.0004,3865.5,3865.4,7.8061554]
[1761219903730,0.0004,3865.5,3865.4,3.8277554]
[1761219903931,0.4302,3865.5,3865.4,0.52504226]
[1761219904170,3.65366745,3865.5,3865.4,0.52504226]
[1761219904471,5.20886745,3865.5,3865.4,0.52504226]
[1761219905595,0.0004,3865.5,3865.4,1.91704226]
[1761219905769,0.0004,3865.5,3865.4,4.97339663]
[1761219905936,0.0004,3865.5,3865.4,5.78999565]
[1761219906267,0.0004,3865.5,3865.4,5.76412511]
[1761219907541,0.0004,3865.5,3865.4,5.89372511]
[1761219914680,0.0004,3865.5,3865.4,5.42442511]
[1761219915087,0.0004,3865.5,3865.4,5.89372511]
[1761219918012,0.0004,3865.5,3865.4,7.32342511]
[1761219918212,0.0004,3865.5,3865.4,3.81604226]
[1761219918445,0.0004,3865.5,3865.4,6.40309663]
[1761219918642,0.0004,3865.5,3865.4,3.81604226]
[1761219918858,0.0004,3865.5,3865.4,6.40309663]
[1761219921239,0.4271,3865.5,3865.4,6.40309663]
[1761219921566,0.4271,3865.5,3865.4,3.81604226]
[1761219921718,0.4271,3865.5,3865.4,6.40309663]
[1761219922347,0.4271,3865.5,3865.4,0.52704226]
[1761219924776,0.4263,3865.5,3865.4,0.52704226]
[1761219929252,5.51924393,3865.5,3865.4,0.52704226]
[1761219930117,2.93225648,3865.5,3865.4,0.52704226]
[1761219930251,2.61758,3865.5,3865.4,0.52704226]
[1761219930992,2.19168,3865.5,3865.4,0.52704226]
[1761219932712,1.6848,3865.5,3865.4,0.52704226]
[1761219932859,2.19168,3865.5,3865.4,0.52704226]
[1761219933399,3.24572745,3865.9,3865.4,3.293]
[1761219933581,0.1296,3865.6,3865.4,3.293]
[1761219934159,0.1296,3865.6,3865.4,5.88003954]
[1761219934354,0.1296,3865.6,3865.5,2.58698745]
[1761219934889,0.1306,3865.9,3865.7,2.5868088]
[1761219935054,0.1306,3865.9,3865.8,3.31686786]
[1761219935659,0.1306,3865.9,3865.8,6.31748669]
[1761219935660,0.001,3865.9,3865.8,6.31748669]
[1761219936485,0.001,3865.9,3865.8,5.87778669]
[1761219936793,0.001,3865.9,3865.8,3.291]
[1761219936958,0.001,3865.9,3865.8,3.93571463]
[1761219937561,0.001,3865.9,3865.8,6.96220132]
[1761219939799,0.001,3865.9,3865.8,6.52250132]
[1761219940009,0.001,3865.9,3865.8,7.09180132]
[1761219940198,0.2048,3865.9,3865.5,0.002]
[1761219940399,0.50688,3865.8,3865.5,0.002]
[1761219940610,0.50688,3865.6,3865.5,0.002]
[1761219940781,3.09380052,3865.6,3865.5,0.002]
[1761219940982,4.18174161,3865.6,3865.5,0.002]
[1761219941217,3.54780052,3865.6,3865.5,0.002]
[1761219942918,5.10300052,3865.6,3865.5,0.002]
[1761219948142,8.39300052,3865.6,3865.5,0.002]
[1761219948341,5.10300052,3865.6,3865.5,0.002]
[1761219948545,8.39300052,3865.6,3865.5,0.002]
[1761219949045,1.5552,3865.6,3865.5,0.002]
[1761219949211,4.14132052,3865.6,3865.5,0.002]
[1761219949636,1.5544,3865.6,3865.5,0.002]
[1761219949804,2.06128,3865.6,3865.5,0.002]
[1761219950007,4.64820052,3865.6,3865.5,0.002]
[1761219950243,4.77780052,3865.6,3865.5,0.002]
[1761219950644,5.23220052,3865.6,3865.5,0.002]
[1761219960147,5.23320052,3865.6,3865.5,0.002]
[1761219960332,4.77880052,3865.6,3865.5,0.002]
[1761219960651,5.21980052,3865.6,3865.5,0.002]
[1761219963930,8.50980052,3865.6,3865.5,0.002]
[1761219965017,5.21980052,3865.6,3865.5,0.002]
[1761219965422,8.50980052,3865.6,3865.5,0.002]
[1761219966441,8.64480703,3865.6,3865.5,0.002]
[1761219966756,13.52236378,3865.6,3865.5,0.002]
[1761219966939,8.64480703,3865.6,3865.5,0.002]
[1761219973643,8.64400703,3865.6,3865.5,0.002]
[1761219975442,8.20300703,3865.6,3865.5,0.002]
[1761219976143,2.32608651,3865.6,3865.5,0.002]
[1761219976339,4.91300703,3865.6,3865.5,0.4394]
[1761219976664,2.32608651,3865.6,3865.5,0.4394]
[1761219976836,0.001,3865.6,3865.5,0.4394]
[1761219977255,0.001,3865.6,3865.5,0.74484133]
[1761219977455,0.001,3865.6,3865.5,0.4394]
[1761219979277,3.09480052,3865.6,3865.5,0.002]
[1761219979576,4.65000052,3865.6,3865.5,0.002]
[1761219979782,2.06308,3865.6,3865.5,0.4394]
[1761219979983,4.65000052,3865.6,3865.5,0.4394]
[1761219980870,2.06308,3865.6,3865.5,0.4394]
[1761219981070,2.06308,3865.6,3865.5,0.002]
[1761219981270,4.65000052,3865.6,3865.5,0.002]
[1761219983771,2.06308,3865.6,3865.5,0.002]
[1761219984904,4.65000052,3865.6,3865.5,0.002]
[1761219986913,4.77960052,3865.6,3865.5,0.002]
[1761219998106,4.77880052,3865.6,3865.5,0.002]
[1761219998843,2.19188,3865.6,3865.5,0.002]
[1761219999038,4.77880052,3865.6,3865.5,0.002]
[1761220001538,5.21600052,3865.6,3865.5,0.002]
[1761220003212,4.77880052,3865.6,3865.5,0.002]
[1761220003409,5.21600052,3865.6,3865.5,0.002]
[1761220004045,8.06680052,3865.6,3865.5,0.002]
[1761220004219,4.77880052,3865.6,3865.5,0.002]
[1761220007049,5.21600052,3865.6,3865.5,0.002]
[1761220007253,4.77880052,3865.6,3865.5,0.002]
[1761220007750,5.21600052,3865.6,3865.5,0.002]
[1761220010345,4.77880052,3865.6,3865.5,0.002]